Cogmind - Beta 9.2 @@@ ROGUE MODE // 2019.11.30 @ 16:32:52 Player: Cipherpunk Result: Destroyed by S-27 Virus with Autogun Performance ------------- Evolutions (4) 2000 Regions Visited (7) 1400 Robots Destroyed (69) 345 Value Destroyed (1583) 1583 Prototype IDs (8) 160 Alien Tech Used (0) 0 Bonus (255) 255 TOTAL SCORE: 5743 Bonus ------- High Alert Combat Kills 33 Follower Combat Kills 233 Friendly Fire -11 Cogmind --------- Core Integrity 0/850 Matter 291/300 Energy 99/100 System Corruption 3% Temperature Cool (0) Movement Core (50) Location -6/Factory Parts ------- > --- POWER (1) -------- (None) > --- PROPULSION (4) --- (None) > --- UTILITY (8) ------ (None) > --- WEAPON (2) ------- (None) > --- INVENTORY (4) ---- Launcher Guidance Computer Hardened Light Armor Plating Proton Missile Launcher Proton Missile Launcher Peak State ------------ > --- POWER ------------ Makeshift Power Source > --- PROPULSION ------- Cesium-ion Thruster Cesium-ion Thruster Cesium-ion Thruster Cesium-ion Thruster > --- UTILITY ---------- Experimental Sensor Array Signal Interpreter Makeshift Terrain Scanner Transport Network Coupler Hacking Suite Hacking Suite > --- WEAPON ----------- Enhanced Autogun Spear > --- INVENTORY -------- Deuterium Engine Launcher Guidance Computer Hardened Light Armor Plating Datajack [Rating: 43] Favorites ----------- Power Light Ion Engine Engine Light Ion Engine Power Core Light Nuclear Core Propulsion Aluminum Leg Treads Light Treads Leg Aluminum Leg Flight Unit Cesium-ion Thruster Utility Large Storage Unit Device Experimental Sensor Array Storage Large Storage Unit Processor Transport Network Coupler Hackware Hacking Suite Protection Hardened Light Armor Plating Weapon Small Laser Energy Gun Small Laser Energy Cannon Ion Cannon Ballistic Gun Light Assault Rifle Ballistic Cannon Assault Cannon Launcher Rocket Launcher Special Weapon Mining Laser Piercing Weapon Spear Special Melee Weapon Datajack Build | -11 -10 -10 -10 -9 -8 -7 -6 ------- Run | Scr Mat Min Exi Min Mat Fac Fac Slots Evolved 8 | . . . . . 4 2 2 Power . | . . . . . . . . Propulsion 2 | . . . . . 2 . . Utility 6 | . . . . . 2 2 2 Weapon . | . . . . . . . . Parts Attached 83 | 10 21 . 5 2 33 2 10 Power 11 | 1 5 . . . 3 . 2 Engine 10 | 1 5 . . . 2 . 2 Core 1 | . . . . . 1 . . Reactor . | . . . . . . . . Propulsion 18 | 2 3 . 2 . 11 . . Treads 9 | . . . 2 . 7 . . Leg 5 | 2 3 . . . . . . Wheel . | . . . . . . . . Hover . | . . . . . . . . Flight 4 | . . . . . 4 . . Utility 24 | 2 4 . 3 . 5 2 8 Device 6 | . . . 1 . 1 1 3 Storage 10 | 2 4 . 2 . 1 . 1 Processor 4 | . . . . . 1 1 2 Hackware 3 | . . . . . 2 . 1 Protection 1 | . . . . . . . 1 Artifact . | . . . . . . . . Weapon 30 | 5 9 . . 2 14 . . Energy Gun 15 | 5 7 . . 2 1 . . Energy Cannon 1 | . . . . . 1 . . Ballistic Gun 6 | . 2 . . . 4 . . Ballistic Cannon 2 | . . . . . 2 . . Launcher 2 | . . . . . 2 . . Special Weapon 1 | . . . . . 1 . . Impact Weapon . | . . . . . . . . Slashing Weapon . | . . . . . . . . Piercing Weapon 2 | . . . . . 2 . . Special Melee Weapon 1 | . . . . . 1 . . Unidentified Prototypes 2 | . . . 1 . 1 . . Parts Lost 24 | . 2 . . . 14 1 7 Power 2 | . . . . . 1 . 1 Propulsion 10 | . . . . . 6 . 4 Utility 5 | . . . . . 2 1 2 Weapon 7 | . 2 . . . 5 . . Highest Loss Streak 7 | . 1 . . . 7 1 4 Average Slot Usage (%) 88 | . 99 100 93 85 77 100 57 Engine 12 | . 14 14 14 14 8 7 4 Treads 11 | . . . 2 28 32 . . Leg 15 | . 28 28 25 . . . . Flight 1 | . . . . . 1 30 17 Device 1 | . . . 2 . . 15 3 Storage 18 | . 28 28 19 14 16 . 4 Energy Gun 13 | . 16 14 14 24 4 . . Ballistic Gun 8 | . 11 14 14 3 1 7 3 Naked Turns 51 | . . . . . 2 . 49 Heaviest Build 174 | 16 41 37 85 85 174 11 19 Greatest Support 83 | 20 20 20 40 40 83 18 24 Greatest Overweight (x) 8 | 1 2 1 4 2 8 . 3 Average Overweight (x) 1 | . 1 1 1 2 1 . . Largest Inventory Capacity 44 | 8 16 16 24 24 44 4 8 Average Capacity 22 | 6 15 16 18 24 41 4 6 Most Carried 44 | 3 16 16 24 24 44 4 8 Average Carried 19 | 1 13 16 17 23 32 3 5 Final Capacity 24 | 8 16 16 24 24 4 4 4 Final Carried 24 | 3 16 16 24 24 4 4 4 Class Distribution -------------------- 53% | Hauler-Mutant 30% | Scavenger-Mutant 10% | Mutant 3% | Hacker-Scout Dominant Class ---------------- Mutant | -10/Materials Scavenger-Mutant | -10/Mines Scavenger-Mutant | -10/Exiles Hauler-Mutant | -9/Mines Hauler-Mutant | -8/Materials Hacker-Scout | -7/Factory Mutant | -6/Factory Resources | -11 -10 -10 -10 -9 -8 -7 -6 ----------- Run | Scr Mat Min Exi Min Mat Fac Fac Matter Collected 1451 | 300 241 . 58 11 429 . 412 Remotely . | . . . . . . . . Salvage Created 2446 | 69 680 . 94 33 1277 . 293 Parts 148 | 3 55 . 5 2 66 . 17 Haulers Intercepted 7 | . 1 . . . 5 . 1 Recyclers Shooed 8 | . 3 . . . 4 . 1 Parts Field Recycled . | . . . . . . . . Retrieved Matter . | . . . . . . . . Parts Self-Destructed . | . . . . . . . . Prevented . | . . . . . . . . Kills | -11 -10 -10 -10 -9 -8 -7 -6 ------- Run | Scr Mat Min Exi Min Mat Fac Fac Combat Hostiles Destroyed 47 | . 17 . . 1 29 . . Guns 29 | . 17 . . 1 11 . . Cannons 14 | . . . . . 14 . . AOE 4 | . . . . . 4 . . Classes Destroyed 9 | 1 6 . . . 2 . . Worker 4 | . 1 . . . 2 . 1 Hauler 7 | . 1 . . . 5 . 1 Recycler 5 | 1 1 . . . 2 . 1 Operator 3 | . 2 . . . 1 . . Watcher 3 | . 2 . . . . . 1 Swarmer 20 | . 9 . . . 11 . . Grunt 23 | . 8 . . 1 14 . . Sentry 3 | . . . . . 3 . . Hunter 1 | . . . . . 1 . . Best Kill Streak 6 | 1 6 . . 1 5 . 1 Combat Bots Only 5 | . 5 . . 1 4 . . Max Kills in Single Turn 3 | 1 1 . . 1 3 . 1 Gunslinging . | . . . . . . . . Exploded 3 | . . . . . 3 . . Melee . | . . . . . . . . Uniques/NPCs Destroyed . | . . . . . . . . Combat | -11 -10 -10 -10 -9 -8 -7 -6 -------- Run | Scr Mat Min Exi Min Mat Fac Fac Damage Taken 4492 | . 718 . . 14 2464 172 1124 Core 1162 | . 76 . . . 190 38 858 Absorbed by Shields . | . . . . . . . . Core Remaining (%) 82 | 100 . . . 69 65 94 . Volleys Fired 218 | 5 69 . 8 8 114 2 12 Largest 2 | 1 2 . 2 2 2 1 1 Hottest 104 | 40 90 . 60 80 104 25 25 Shots Fired 368 | 5 118 . 16 16 199 2 12 Gun 267 | 5 118 . 16 16 98 2 12 Cannon 98 | . . . . . 98 . . Launcher 3 | . . . . . 3 . . Special . | . . . . . . . . Kinetic 178 | . 45 . 8 1 110 2 12 Thermal 164 | . 55 . 8 15 86 . . Explosive 3 | . . . . . 3 . . Electromagnetic 23 | 5 18 . . . . . . Robot Hit Streak 19 | 2 14 . 6 9 19 . 6 Robot Miss Streak 3 | 1 3 . 2 3 2 1 2 Penetration Max . | . . . . . . . . Secondary Targets 6 | . 3 . . . 3 . . Max Gunslinging Chain 1 | . 1 . . . 1 . . Shots Hit Robots 274 | 3 79 . 10 10 158 . 14 Core Hits 126 | 2 39 . 4 4 67 . 10 Critical Hits 2 | . . . . . 2 . . Critical Kills 1 | . . . . . 1 . . Critical Parts Destroyed 1 | . . . . . 1 . . Melee Attacks 44 | . . . . . 11 13 20 Impact . | . . . . . . . . Slashing . | . . . . . . . . Piercing 40 | . . . . . 7 13 20 Sneak Attacks 6 | . . . . . 5 . 1 Combat Hostiles . | . . . . . . . . Follow-up Attacks . | . . . . . . . . Damage Inflicted 4640 | 52 919 . 107 133 3027 . 402 Guns 2144 | 52 878 . 107 133 836 . 138 Cannons 1570 | . . . . . 1570 . . Explosions 528 | . 38 . . . 490 . . Melee 389 | . . . . . 131 . 258 Ramming 9 | . 3 . . . . . 6 Kinetic 1804 | . 236 . 42 8 1380 . 138 Thermal 1665 | . 449 . 65 125 1026 . . Explosive 490 | . . . . . 490 . . Electromagnetic 283 | 52 231 . . . . . . Impact . | . . . . . . . . Slashing . | . . . . . . . . Piercing 389 | . . . . . 131 . 258 Highest Corruption 3 | . . . . . . . 3 Average Corruption 2 | . . . . . . . 2 Corruption Purged . | . . . . . . . . Effects 2 | . . . . . . . 2 Matter Fused 1 | . . . . . . . 1 Heat Flow Errors 1 | . . . . . . . 1 Overload Shots . | . . . . . . . . Overflow Damage 25 | . . . . . 25 . . Projectiles 25 | . . . . . 25 . . Explosions . | . . . . . . . . Melee . | . . . . . . . . Knockbacks 9 | . . . . . 9 . . Impact . | . . . . . . . . Kinetic 9 | . . . . . 9 . . Secondary . | . . . . . . . . Self-Inflicted Damage 50 | . . . . . 48 . 2 Shots 1 | . . . . . 1 . . Rammed 7 | . . . . . . . 7 Targets Rammed 8 | . 1 . . . . . 7 Kicked 1 | . 1 . . . . . . Crushed . | . . . . . . . . Highest Temperature 222 | . 222 . 40 81 192 7 146 Average Temperature 49 | . 56 . 21 35 49 7 28 Received Heat Transfer 1575 | . 231 . . 9 1044 54 237 Siege Activations . | . . . . . . . . Robots Corrupted . | . . . . . . . . Combat Hostiles . | . . . . . . . . Parts Fried 1 | . 1 . . . . . . Impact Corruptions . | . . . . . . . . Robots Melted . | . . . . . . . . Combat Hostiles . | . . . . . . . . Parts Melted 9 | . 4 . 1 . 4 . . Heat Transferred 3505 | . 1118 . 150 275 1962 . . Parts Sabotaged . | . . . . . . . . Parts Stolen . | . . . . . . . . Parts Stripped . | . . . . . . . . Power Chain Reactions 1 | . 1 . . . . . . Missiles Intercepted . | . . . . . . . . Alert | -11 -10 -10 -10 -9 -8 -7 -6 ------- Run | Scr Mat Min Exi Min Mat Fac Fac Peak Influence 438 | 5 354 66 . 87 438 242 210 Average Influence 130 | 1 194 66 . 30 187 176 173 Maximum Alert Level 2 | . 1 . . . 2 1 1 Low Security (%) 79 | 100 58 100 . 100 64 94 85 Level 1 19 | . 41 . . . 30 5 14 Level 2 1 | . . . . . 4 . . Level 3 . | . . . . . . . . Level 4 . | . . . . . . . . Level 5 . | . . . . . . . . High Security . | . . . . . . . . Max Security . | . . . . . . . . Squads Dispatched 12 | . 2 . . . 6 1 3 Investigation 3 | . 1 . . . 1 . 1 Extermination . | . . . . . . . . Reinforcement 6 | . 1 . . . 2 1 2 Assault . | . . . . . . . . Garrison 3 | . . . . . 3 . . Intercept . | . . . . . . . . Construction Impeded 1 | . . . . . 1 . . Haulers Reinforced . | . . . . . . . . Stealth | -11 -10 -10 -10 -9 -8 -7 -6 --------- Run | Scr Mat Min Exi Min Mat Fac Fac Distress Signals 8 | . 3 . . . 4 . 1 Communications Jammed . | . . . . . . . . Distress Signals . | . . . . . . . . Times Spotted 118 | . 28 . . 17 47 5 21 Peak Tracking Total 16 | . 5 . . 15 7 3 16 Tactical Retreats 5 | . . . . 1 . 1 3 Traps | -11 -10 -10 -10 -9 -8 -7 -6 ------- Run | Scr Mat Min Exi Min Mat Fac Fac Traps Triggered . | . . . . . . . . Indirectly . | . . . . . . . . Trap Hack Attempts 45 | . . . . . 45 . . Triggered . | . . . . . . . . Disarmed 3 | . . . . . 3 . . Reprogrammed . | . . . . . . . . Reused . | . . . . . . . . Traps Extracted . | . . . . . . . . Installed . | . . . . . . . . Triggered 1 | . 1 . . . . . . Machines | -11 -10 -10 -10 -9 -8 -7 -6 ---------- Run | Scr Mat Min Exi Min Mat Fac Fac Machines Disabled 4 | . . . . . 4 . . Max in Single Turn 1 | . . . . . 1 . . Machines Sabotaged . | . . . . . . . . Garrisons Compromised . | . . . . . . . . Overloaded Fab Kills . | . . . . . . . . Fab Network Shutdowns . | . . . . . . . . Hacking | -11 -10 -10 -10 -9 -8 -7 -6 --------- Run | Scr Mat Min Exi Min Mat Fac Fac Machines Accessed 16 | . 4 . 3 . 5 1 3 Terminals 9 | . 4 . . . 3 . 2 Fabricators 1 | . . . . . . . 1 Repair Stations . | . . . . . . . . Recycling Units . | . . . . . . . . Scanalyzers 3 | . . . . . 2 1 . Garrison Access . | . . . . . . . . Total Hacks 70 | . 17 . 10 . 29 6 8 Successful 54 | . 10 . 10 . 25 6 3 Failed 16 | . 7 . . . 4 . 5 Catastrophic 4 | . . . . . 2 . 2 Database Lockouts . | . . . . . . . . Manual 27 | . 14 . 1 . 6 . 6 Terminals 29 | . 17 . . . 6 . 6 Fabricators 2 | . . . . . . . 2 Repair Stations . | . . . . . . . . Recycling Units . | . . . . . . . . Scanalyzers 29 | . . . . . 23 6 . Garrison Access . | . . . . . . . . Terminal Hacks 16 | . 5 . 10 . 1 . . Record 10 | . . . 10 . . . . Prototype ID Bank 2 | . 1 . . . 1 . . Branch Access Points 1 | . 1 . . . . . . Terminal Index 1 | . 1 . . . . . . Scanalyzer Index 1 | . 1 . . . . . . Hauler Manifests 1 | . 1 . . . . . . Fabricator Hacks 2 | . . . . . . . 2 Load Schematic 1 | . . . . . . . 1 Build 1 | . . . . . . . 1 Repair Station Hacks . | . . . . . . . . Recycling Unit Hacks . | . . . . . . . . Scanalyzer 28 | . . . . . 22 6 . Insert Component 13 | . . . . . 10 3 . Analyze 15 | . . . . . 12 3 . Garrison Access Hacks . | . . . . . . . . Unauthorized Hacks 21 | . 14 . . . 5 . 2 Terminals 8 | . 5 . . . 2 . 1 Botnet 7 | . 4 . . . 2 . 1 Operators 1 | . 1 . . . . . . Fabricators . | . . . . . . . . Repair Stations . | . . . . . . . . Recycling Units . | . . . . . . . . Scanalyzers . | . . . . . . . . Garrison Access . | . . . . . . . . Data Cores Recovered 1 | . 1 . . . . . . Used . | . . . . . . . . Hacking Detections 12 | . 4 . . . 5 1 2 Full Trace Events 4 | . 1 . . . 2 . 1 Feedback Events . | . . . . . . . . Feedback Blocked . | . . . . . . . . Robot Schematics Acquired . | . . . . . . . . Robots Built . | . . . . . . . . Matter . | . . . . . . . . Time . | . . . . . . . . Total Robot Build Rating . | . . . . . . . . Part Schematics Acquired 10 | . . . . . 8 2 . Parts Built . | . . . . . . . . Matter 285 | . . . . . . . 285 Time 152 | . . . . . . . 152 Total Part Build Rating . | . . . . . . . . Parts Repaired . | . . . . . . . . Time . | . . . . . . . . Parts Recycled . | . . . . . . . . Recycled Matter . | . . . . . . . . Retrieved Matter . | . . . . . . . . Retrieved Components . | . . . . . . . . Parts Scanalyzed 11 | . . . . . 9 2 . Part Schematics Acquired 10 | . . . . . 8 2 . Parts Damaged 1 | . . . . . 1 . . Bothacking | -11 -10 -10 -10 -9 -8 -7 -6 ------------ Run | Scr Mat Min Exi Min Mat Fac Fac Used RIF Installer . | . . . . . . . . Robots Hacked 2 | . . . . . 2 . . Non-combat 2 | . . . . . 2 . . Combat . | . . . . . . . . Robot Hacks Applied 4 | . . . . . 4 . . parse_system 1 | . . . . . 1 . . no_distress 2 | . . . . . 2 . . check_alert 1 | . . . . . 1 . . Relay Couplers Released . | . . . . . . . . Robots Rewired 3 | . . . 3 . . . . Allies Hacked . | . . . . . . . . Hacks Repelled . | . . . . . . . . Allies | -11 -10 -10 -10 -9 -8 -7 -6 -------- Run | Scr Mat Min Exi Min Mat Fac Fac Total Allies 7 | . . . 3 4 . . . Largest Group 4 | . . . 3 4 4 . . Highest-Rated Group 68 | . . . 37 68 61 . . Highest-Rated Ally 31 | . . . 21 31 21 . . Total Orders . | . . . . . . . . Ally Attacks 49 | . . . . 28 21 . . Total Damage 762 | . . . . 492 270 . . Kills 16 | . . . . 14 2 . . Allies Corrupted 1 | . . . . 1 . . . Allies Melted . | . . . . . . . . Intel | -11 -10 -10 -10 -9 -8 -7 -6 ------- Run | Scr Mat Min Exi Min Mat Fac Fac Robot Analysis Total . | . . . . . . . . Derelict Logs Recovered 3 | . . 1 . 2 . . . Drone Launches . | . . . . . . . . Drone Recoveries . | . . . . . . . . Exploration | -11 -10 -10 -10 -9 -8 -7 -6 ------------- Run | Scr Mat Min Exi Min Mat Fac Fac Turns Passed 7130 | 78 851 153 3032 1269 1256 149 342 Spaces Moved 4058 | 43 393 97 1664 592 451 292 526 Core 111 | 4 . . . . 3 . 104 Treads 1092 | . . . 120 592 380 . . Legs 2073 | 39 393 97 1544 . . . . Wheels . | . . . . . . . . Hover . | . . . . . . . . Flight 782 | . . . . . 68 292 422 Fastest Speed 31 | 50 120 150 120 200 34 34 31 Average Speed 146 | 119 150 150 175 200 169 34 38 Slowest Speed 320 | 150 180 150 240 200 320 34 200 Overloaded Moves . | . . . . . . . . Propulsion Burnouts . | . . . . . . . . Robots Hopped 3 | . . . . . 1 . 2 Cave-ins Triggered . | . . . . . . . . Exploration Rate (%) 43 | 4 62 30 93 96 39 10 17 Regions Visited 7 Branch Regions 3 Pre-discovered Areas . | . . . . . . . . Known Exits Taken 3 | . 1 . . . 1 1 . Unknown Exits Taken 4 | 1 . 1 1 1 . . . Scrap Searched 2 | . . 1 . 1 . . . Spaces Dug 19 | . . . . . 3 11 5 Terrain Destroyed 54 | . 3 . . . 35 11 5 Melee 19 | . . . . . 3 11 5 Projectile 10 | . . . . . 10 . . AOE 25 | . 3 . . . 22 . . Actions | -11 -10 -10 -10 -9 -8 -7 -6 --------- Run | Scr Mat Min Exi Min Mat Fac Fac Total 4835 | 60 550 106 1765 667 739 322 626 Wait 141 | . 32 8 3 46 12 2 38 Move 4046 | 42 392 96 1663 591 448 291 523 Hop 2 | . . . . . 1 . 1 Pick Up 117 | 3 19 1 30 9 47 7 1 Fast Attach 32 | 7 . . 4 1 14 . 6 Attach 18 | . 2 . 1 . 10 2 3 Detach 15 | . . . 2 . 4 . 9 Swap 33 | 3 19 . . 1 9 . 1 Drop 73 | . 16 1 11 11 24 5 5 Fire 218 | 5 69 . 8 8 114 2 12 Melee 44 | . . . . . 11 13 20 Ram 7 | . . . . . . . 7 Kick 1 | . 1 . . . . . . Crush . | . . . . . . . . Escape Stasis . | . . . . . . . . Rewire 43 | . . . 43 . . . . Trap 45 | . . . . . 45 . . Miscellaneous . | . . . . . . . . Route ------- -11/Scrapyard -10/Materials (discovered 3 exits: [*Mat] / *Min x2) -10/Mines -10/Exiles (discovered 2 exits: [*Min x2]) -9/Mines (discovered 2 exits: *Mat x2) -8/Materials (discovered 2 exits: *Fac x2) -7/Factory (discovered 2 exits: *Fac / [*Low]) -6/Factory (discovered 1 exit: [*Low]) History --------- Turn | Location | Event 35 | -11/Scrapyard | Discovered new exit (range 15) 79 | -11/Scrapyard | Entered Materials 335 | -10/Materials | Build established: Mutant 531 | -10/Materials | Identified exit to Mines 861 | -10/Materials | Discovered new exit (range 4) 930 | -10/Materials | Entered Mines 968 | -10/Mines | Learned 4 Materials zone layouts 998 | -10/Mines | Found a damaged Exp. Sensor Array with a note attached 1007 | -10/Mines | Found Prototype Device 1039 | -10/Mines | Deemed a non-threat by the Exiles lab entrance 1039 | -10/Mines | Discovered new exit (range 5) 1047 | -10/Mines | Build established: Scavenger-Mutant 1083 | -10/Mines | Entered Exiles 1083 | -10/Exiles | Found Exiles lab destroyed 1103 | -10/Exiles | Discovered new exit (range 15) 1581 | -10/Exiles | Discovered new exit (range 12) 2207 | -10/Exiles | Identified Exp. Sensor Array 3061 | -10/Exiles | Build established: Hauler-Mutant 4115 | -10/Exiles | Entered Mines 4115 | -9/Mines | Accompanied by 3 allies 4118 | -9/Mines | Received a Mining Laser from a helpful Derelict 4128 | -9/Mines | Met a Derelict bent on vengeance 4157 | -9/Mines | Learned 2 Materials zone layouts 4237 | -9/Mines | Learned Materials terminal intel 4249 | -9/Mines | Discovered new exit (range 13) 4263 | -9/Mines | Received a Rocket Launcher from a helpful Derelict 4333 | -9/Mines | Found a hidden stash of uninstalled traps 4499 | -9/Mines | Assembled infested the area 4504 | -9/Mines | Assisted by a Guerilla fighting off Assembled 4738 | -9/Mines | Discovered new exit (range 14) 5258 | -9/Mines | Assisted by bots powering up and referring to "LRC-V3" 5384 | -9/Mines | Entered Materials 5384 | -8/Materials | Accompanied by 4 allies 5384 | -8/Materials | Evolved 4 slots: Propulsion x2, Utility x2 5385 | -8/Materials | Identified exit to Factory 5386 | -8/Materials | Loaded intel: 12 terminal locations 5516 | -8/Materials | Garrison activated, responded to threat 5811 | -8/Materials | Lost 5 parts (1p3n1w) 6597 | -8/Materials | Lost 7 parts (3n2u2w) 6640 | -8/Materials | Entered Factory 6640 | -7/Factory | Evolved 2 slots: Utility x2 6696 | -7/Factory | Discovered new exit (range 3) 6780 | -7/Factory | Discovered new exit (range 15) 6788 | -7/Factory | Identified exit to Factory 6789 | -7/Factory | Entered another Factory area 6789 | -6/Factory | Evolved 2 slots: Utility x2 6941 | -6/Factory | Discovered new exit (range 9) 7006 | -6/Factory | Lost 3 parts (2n1u) 7082 | -6/Factory | Released all parts (4) 7097 | -6/Factory | Lost 4 parts (1p2n1u) 7101 | -6/Factory | Core integrity fell below 50% 7110 | -6/Factory | Core integrity fell below 20% 7131 | -6/Factory | Destroyed by S-27 Virus with Autogun Last Messages --------------- 07070_ Adv. Signal Interpreter permanently disabled. 07071_ Slammed into P-60 Hacker. 07077_ System corrupted: Heat flow error (+171). 07082_ Released Transport Network Coupler. 07082_ Released Med. Storage Unit. 07082_ Released Hacking Suite. 07082_ Released Adv. Signal Interpreter. 07085_ Fabricator disabled. 07088_ K-01 Serf collects debris. 07094_ P-60 Hacker destroyed. 07097_ K-01 Serf collects debris. 07103_ System corrupted: Matter fused (-9). 07105_ O-24 Administrator sends out distress signal. 07105_ O-24 Administrator: "IFF HANDSHAKE FAILED. SECURING TERMINAL." 07112_ S-27 Virus destroyed. 07114_ ALERT: Hostiles spotted, dispatching reinforcements to Terminal F003. 07116_ Connecting with Terminal... 07117_ ALERT: Suspicious activity at Terminal F016. Dispatching Investigation squad. Map ----- +----------------------------------------------------+ | | | | | | | | | | | | | | | | | | | | | | | | | | | | | | | | | | | | | | | ???????????????????????????????????#######???????? | | ??????????????????????????????????# ???????? | | ??????????????????????????????????# ???????? | | ??????????????????????????????????? ????????? | | ??????????????????????????????????? ????????? | | ?????????????????###################+##+########## | | ???????????+ @ | | ?????????????????#### ################# ########## | | ??????????????????????????????????????#+#???????## | | ????????????????????????????????????????????????#! | | ????????????????????????????????????????????????# | | ????????????????????????????????????????????????# | | ????????????????????????????????????????????????# | | ????????????????????????????????????????????????# | | ????????????????????????????????????????????????## | | ?????????????????????????????????????????????????# | | ?????????????????????????????????????????????????# | | ???????????????????????????????????+#????????????# | | ??????????????????????????????????? ##+######### | | ??????????????????????????????????? !![ | | ????????????????????????????????# ? !![ | | ????????????????????????????????# ??""""" ![[ | | ????????????????????????????????# """""" *% | | ????????????????????????????????# """""" | | ????????????????????????????????# """""" | | ????????????????????????????##### [!! | | ??????????????????????????? [!! | | ??????????????????????????? !!! | | ?????????????????????????? | | ?????????????????????????? | | ?????????????????????????? ######## | +----------------------------------------------------+ Best States ------------- Heat Dissipation 37 Energy Generation 15 Energy Capacity 250 Matter Stores 300 Matter Capacity 300 Sight Range 16 Robot Scan Range 30 Terrain Scan Range 18 Terrain Scan Density 10 Corruption Prevention 12 Armor Coverage 150 Evasion (%) 63 Recoil Reduction 4 Offensive Hacking 20 Item Schematics ----------------- Hacking Suite | -8/Materials | Scanalyzed Exp. Sensor Array | -8/Materials | Scanalyzed Cesium-ion Thruster | -8/Materials | Scanalyzed Mak. System Restoration Module | -8/Materials | Scanalyzed Mak. Salvage Targeting Computer | -8/Materials | Scanalyzed Mak. Terrain Scanner | -8/Materials | Scanalyzed Hvy. Ion Engine | -8/Materials | Scanalyzed Mak. Power Source | -8/Materials | Scanalyzed Launcher Guidance Computer | -7/Factory | Scanalyzed Hrd. Light Armor Plating | -7/Factory | Scanalyzed Robot Schematics ------------------ None Fabricated ------------ Nothing Alien Tech Used ----------------- None Achievements -------------- Packrat Tank Challenges ------------ None Game ------ Seed ChipIonModule Manual? 0 Play Time 01:25:04 Cumulative 37.5 hours Start 2019.11.30 @ 11:07:16 End 2019.11.30 @ 16:32:52 Sessions 3 Manual Loads 0 Difficulty Rogue Special Mode None Game No. 33 Rogue 33 Adventurer 0 Explorer 0 Win Type - Total 0 Types 0/0/0/0/0/0/0 Lore% 17 Gallery% 38 Achievement% 24 Wizard Run 0 Options --------- ASCII 0 Keyboard 1 Movement Numpad Keybinds 0 Fullscreen 2 Font 18/SmallcapsGlow Map View 76x50 Tactical HUD 1 Map Filters NONE Filters NONE Steam 1 RUN: 9acf608d-2ae7-419b-aad5-5325e7dba3ed